bitfinex/quotes_BTCUSD_20220731
["timestamp","ask_amount","ask_price","bid_price","bid_amount"]
[1659310495532,0.0025,23338.0,23335.0,16.17331159]
[1659310495814,0.0025,23338.0,23335.0,16.72491159]
[1659310496009,0.0025,23338.0,23335.0,17.21961775]
[1659310497723,0.0025,23338.0,23335.0,17.15361775]
[1659310497937,0.0025,23338.0,23335.0,17.23361775]
[1659310498666,0.0025,23338.0,23335.0,16.80491159]
[1659310498925,0.0005,23344.0,23338.0,0.04291]
[1659310499152,0.0032,23349.0,23344.0,0.09425394]
[1659310499382,0.42870616,23348.0,23344.0,0.09425394]
[1659310499847,0.42870616,23348.0,23345.0,0.0848504]
[1659310500290,0.0032,23349.0,23345.0,0.1348504]
[1659310500523,0.36531956,23350.0,23349.0,1.05]
[1659310500524,0.001,23350.0,23349.0,1.05]
[1659310500732,0.98962956,23358.0,23351.0,0.04980132]
[1659310500964,0.42870616,23355.0,23350.0,0.47139413]
[1659310501188,0.05,23354.0,23350.0,0.0767891]
[1659310501428,0.42870616,23353.0,23351.0,0.05006999]
[1659310502566,0.41377716,23352.0,23351.0,0.05006999]
[1659310502825,0.84248332,23352.0,23350.0,0.128]
[1659310503055,0.42870616,23351.0,23350.0,0.128]
[1659310503277,0.42870616,23351.0,23350.0,0.05]
[1659310503511,0.42870616,23351.0,23347.0,0.09296725]
[1659310503729,0.47870616,23351.0,23349.0,0.05637563]
[1659310503959,0.42870616,23350.0,23349.0,0.05637563]
[1659310504226,0.33430616,23350.0,23349.0,0.05637563]
[1659310504454,0.33430616,23350.0,23349.0,0.08707563]
[1659310504692,0.38430616,23350.0,23349.0,0.08707563]
[1659310506023,0.5066476,23350.0,23349.0,0.08707563]
[1659310506236,0.46330616,23350.0,23349.0,0.08707563]
[1659310506683,0.46330616,23350.0,23349.0,0.13707563]
[1659310507121,0.5066476,23350.0,23349.0,0.13707563]
[1659310507377,0.4276476,23350.0,23349.0,0.13707563]
[1659310507583,0.74540262,23350.0,23349.0,0.0307]
[1659310507824,1.59939662,23350.0,23349.0,0.0307]
[1659310508034,0.05,23349.0,23348.0,0.02140161]
[1659310508257,0.05,23345.0,23344.0,0.01281502]
[1659310508470,0.05,23345.0,23343.0,0.04023953]
[1659310508471,0.05,23344.0,23343.0,0.04023953]
[1659310508735,0.05,23341.0,23340.0,0.05819234]
[1659310508943,0.05,23340.0,23339.0,0.05663222]
[1659310509200,0.47870616,23340.0,23339.0,0.05663222]
[1659310509870,0.47870616,23340.0,23339.0,0.13363222]
[1659310510096,0.42870616,23342.0,23340.0,0.85]
[1659310510328,0.03212,23352.0,23341.0,0.05809621]
[1659310510575,0.42870616,23350.0,23342.0,0.41071245]
[1659310510788,0.5798,23349.0,23344.0,0.04448521]
[1659310511010,0.42870616,23348.0,23344.0,0.06922068]
[1659310511519,0.39762416,23348.0,23345.0,0.05433152]
[1659310511732,0.39762416,23348.0,23345.0,0.67527552]
[1659310511944,0.39762416,23348.0,23346.0,0.01264348]
[1659310512161,0.39762416,23348.0,23346.0,0.14551271]
[1659310512553,0.39762416,23348.0,23347.0,0.01264348]
[1659310512772,0.39762416,23348.0,23347.0,0.05460641]
[1659310513841,0.39762416,23348.0,23347.0,0.06796293]
[1659310514071,1.10863964,23348.0,23347.0,0.026]
[1659310514322,0.80464564,23348.0,23347.0,0.026]
[1659310514548,0.44762416,23348.0,23347.0,0.21397454]
[1659310514770,0.47974416,23348.0,23347.0,0.21397454]
[1659310515031,0.44762416,23348.0,23347.0,0.21397454]
[1659310515222,0.44762416,23348.0,23347.0,0.18797454]
[1659310515894,0.50974416,23348.0,23347.0,0.26497454]
[1659310516110,0.47762416,23348.0,23347.0,0.26497454]
[1659310516556,0.55974416,23348.0,23347.0,0.26497454]
[1659310516814,0.47762416,23348.0,23347.0,0.26497454]
[1659310517217,0.47974416,23348.0,23347.0,0.18797454]
[1659310517429,0.44762416,23348.0,23347.0,0.18797454]
[1659310517684,0.4909656,23348.0,23347.0,0.18797454]
[1659310517883,0.8739596,23348.0,23347.0,0.18797454]
[1659310518188,0.52662416,23348.0,23347.0,0.18797454]
[1659310518834,0.56129732,23348.0,23347.0,0.18797454]
[1659310519040,0.52662416,23348.0,23347.0,0.18797454]
[1659310519269,0.44762416,23348.0,23347.0,0.18797454]
[1659310519702,0.4909656,23348.0,23347.0,0.18797454]
[1659310519930,0.52662416,23348.0,23347.0,0.18797454]
[1659310520167,0.52662416,23348.0,23347.0,0.23797454]
[1659310520369,0.83061816,23348.0,23347.0,0.18797454]
[1659310520618,0.52662416,23348.0,23347.0,0.18797454]
[1659310521557,0.52662416,23348.0,23347.0,0.23797454]
[1659310521779,0.44762416,23348.0,23347.0,0.23797454]
[1659310521988,0.44762416,23348.0,23347.0,0.31597454]
[1659310523331,0.44762416,23348.0,23347.0,0.23797454]
[1659310524001,0.5699656,23348.0,23347.0,0.23797454]
[1659310524260,0.52662416,23348.0,23347.0,0.23797454]
[1659310524488,0.52662416,23348.0,23347.0,0.18797454]
[1659310524911,0.52662416,23348.0,23347.0,0.23797454]
[1659310525140,0.5699656,23348.0,23347.0,0.23797454]
[1659310525269,0.4909656,23348.0,23347.0,0.23797454]
[1659310525481,0.44762416,23348.0,23347.0,0.23797454]
[1659310526079,0.52662416,23348.0,23347.0,0.23797454]
[1659310527479,0.44762416,23348.0,23347.0,0.23797454]
[1659310527904,0.44762416,23348.0,23347.0,0.31597454]
[1659310528784,0.44762416,23348.0,23347.0,0.26597454]
[1659310529209,0.4909656,23348.0,23347.0,0.18797454]
[1659310529427,0.48229732,23348.0,23347.0,0.18797454]
[1659310529631,0.44762416,23348.0,23347.0,0.18797454]
[1659310530104,0.44762416,23348.0,23347.0,0.26597454]
[1659310530318,0.48229732,23348.0,23347.0,0.26597454]
[1659310530603,0.44762416,23348.0,23347.0,0.26597454]
[1659310531484,0.75161816,23348.0,23347.0,0.26597454]
[1659310531705,0.7949596,23348.0,23347.0,0.26597454]
[1659310531929,0.5699656,23348.0,23347.0,0.18797454]
[1659310532353,0.83061816,23348.0,23347.0,0.18797454]
[1659310532556,0.56129732,23348.0,23347.0,0.18797454]
[1659310532679,0.52662416,23348.0,23347.0,0.18797454]
[1659310533103,0.44762416,23348.0,23347.0,0.18797454]
[1659310533322,0.44751688,23348.0,23347.0,0.18797454]
[1659310533527,0.49085832,23348.0,23347.0,0.18797454]
[1659310533733,0.49085832,23348.0,23347.0,0.18787743]
[1659310533970,0.83051088,23348.0,23347.0,0.18787743]
[1659310534170,0.52651688,23348.0,23347.0,0.18787743]
[1659310534642,0.56985832,23348.0,23347.0,0.18787743]
[1659310534839,0.52651688,23348.0,23347.0,0.18787743]
[1659310535273,0.44751688,23348.0,23347.0,0.18787743]
[1659310535649,0.49085832,23348.0,23347.0,0.18787743]
[1659310535854,0.56985832,23348.0,23347.0,0.18787743]
[1659310536286,0.56985832,23348.0,23347.0,0.20928121]
[1659310536728,0.83051088,23348.0,23347.0,0.20928121]
[1659310537250,0.44751688,23348.0,23347.0,0.20928121]
[1659310537910,0.52651688,23348.0,23347.0,0.20928121]
[1659310539298,0.62651688,23348.0,23347.0,0.20928121]
[1659310539540,0.93051088,23348.0,23347.0,0.20928121]
[1659310539769,0.88363088,23348.0,23347.0,0.18787743]
[1659310539985,0.92163088,23348.0,23347.0,0.18787743]
[1659310540211,1.07201432,23348.0,23347.0,0.18787743]
[1659310540433,0.96497232,23348.0,23347.0,0.18787743]
[1659310541337,0.89485232,23348.0,23347.0,0.18787743]
[1659310541787,0.84485232,23348.0,23347.0,0.18787743]
[1659310542053,0.92385232,23348.0,23347.0,0.18787743]
[1659310542291,0.83051088,23348.0,23347.0,0.18787743]
[1659310542514,0.52651688,23348.0,23347.0,0.18787743]
[1659310542742,0.47651688,23348.0,23347.0,0.23787743]
[1659310542984,0.47651688,23348.0,23347.0,0.18787743]
[1659310543455,0.44085832,23348.0,23347.0,0.18787743]
[1659310543711,0.39751688,23348.0,23347.0,0.18787743]
[1659310544361,0.47651688,23348.0,23347.0,0.18787743]
[1659310545748,0.43219004,23348.0,23347.0,0.18787743]
[1659310545981,0.47651688,23348.0,23347.0,0.18787743]
[1659310546904,0.51985832,23348.0,23347.0,0.18787743]
[1659310547130,0.51485832,23348.0,23347.0,0.18787743]
[1659310547353,0.43585832,23348.0,23347.0,0.18787743]
[1659310547602,0.39251688,23348.0,23347.0,0.18787743]
[1659310548054,0.47151688,23348.0,23347.0,0.18787743]
[1659310549130,0.47151688,23348.0,23347.0,0.23787743]
[1659310549354,0.39251688,23348.0,23347.0,0.27905958]
[1659310549579,0.39251688,23348.0,23347.0,0.57905958]
[1659310549839,0.39251688,23348.0,23347.0,0.27905958]
[1659310550063,0.39451688,23348.0,23347.0,0.61805958]
[1659310550283,0.39451688,23348.0,23347.0,0.31805958]
[1659310550509,0.39451688,23348.0,23347.0,0.33388843]
[1659310550728,0.39451688,23348.0,23347.0,0.44089243]
[1659310551168,0.39251688,23348.0,23347.0,0.40189243]
[1659310551347,0.39251688,23348.0,23347.0,0.4148023]
[1659310551780,0.47151688,23348.0,23347.0,0.4148023]
[1659310552011,0.47151688,23348.0,23347.0,0.2007873]
[1659310552277,0.47151688,23348.0,23347.0,0.85780878]
[1659310552505,0.47151688,23348.0,23347.0,1.19145226]
[1659310552754,0.079,23348.0,23347.0,1.61941526]
[1659310552968,0.42870616,23353.0,23348.0,0.9]
[1659310553192,0.42870616,23353.0,23349.0,0.35466847]
[1659310553406,0.42870616,23353.0,23349.0,0.39943195]
[1659310553619,0.42870616,23353.0,23350.0,0.01264348]
[1659310553831,0.42870616,23353.0,23351.0,0.1532421]
[1659310554055,0.42870616,23353.0,23351.0,0.3032421]
[1659310554282,0.42870616,23353.0,23352.0,0.35537337]
[1659310554505,0.07541953,23353.0,23352.0,0.35537337]
[1659310555867,0.07541953,23353.0,23352.0,0.38437337]
[1659310556742,0.07541953,23353.0,23352.0,0.49134137]
[1659310557179,0.07541953,23353.0,23352.0,0.53844137]
[1659310557448,0.07541953,23353.0,23352.0,0.7263188]
[1659310557904,0.07541953,23353.0,23352.0,0.7733188]
[1659310558340,0.07541953,23353.0,23352.0,0.6973188]
[1659310558547,0.07541953,23353.0,23352.0,0.69617995]
[1659310559925,0.07541953,23353.0,23352.0,0.78008995]
[1659310561279,0.07541953,23353.0,23352.0,0.73908995]
[1659310561879,0.07541953,23353.0,23352.0,0.78008995]
[1659310563220,0.07541953,23353.0,23352.0,0.73908995]
[1659310563435,0.07541953,23353.0,23352.0,0.69617995]
[1659310563801,0.07541953,23353.0,23352.0,0.78008995]
[1659310564191,0.07541953,23353.0,23352.0,0.73717995]
[1659310565188,0.07541953,23353.0,23352.0,0.69617995]
[1659310565826,0.07541953,23353.0,23352.0,0.73717995]
[1659310567086,0.07541953,23353.0,23352.0,0.69617995]
[1659310568019,0.07541953,23353.0,23352.0,0.73717995]
[1659310569208,0.07541953,23353.0,23352.0,0.69617995]
[1659310569961,0.07541953,23353.0,23352.0,0.73717995]
[1659310571778,0.42870616,23357.0,23352.0,0.69617995]
[1659310571999,0.42870616,23357.0,23353.0,0.79628277]
[1659310572226,0.42370616,23357.0,23354.0,0.3458198]
[1659310572474,0.42370616,23357.0,23355.0,0.106953]
[1659310572723,0.42370616,23357.0,23356.0,0.213901]
[1659310572954,0.42370616,23357.0,23356.0,0.56341263]
[1659310573420,0.42370616,23357.0,23356.0,0.34951163]
[1659310574081,0.42370616,23357.0,23356.0,0.08451163]
[1659310574769,0.42370616,23357.0,23356.0,0.08431163]
[1659310575221,0.42370616,23357.0,23356.0,0.04931163]
[1659310575697,0.41120496,23357.0,23356.0,0.15627163]
[1659310575904,0.39870376,23357.0,23356.0,0.49127163]
[1659310576144,0.42870616,23359.0,23356.0,0.49127163]
[1659310576396,0.35632486,23360.0,23356.0,0.49127163]
[1659310576397,0.43190616,23360.0,23357.0,0.69736296]
[1659310576615,0.43190616,23360.0,23358.0,0.34891818]
[1659310576856,0.43190616,23360.0,23358.0,0.45585518]
[1659310577086,0.43190616,23360.0,23359.0,0.0479]
[1659310577311,0.43190616,23360.0,23359.0,0.09370853]
[1659310577546,0.6235076,23360.0,23359.0,0.09370853]
[1659310577751,0.6235076,23360.0,23359.0,0.0479]
[1659310577983,0.6235076,23360.0,23359.0,0.0819]
[1659310578258,0.6735076,23360.0,23359.0,0.0819]
[1659310579156,1.33062646,23360.0,23359.0,0.0819]
[1659310579392,1.33062646,23360.0,23359.0,0.0479]
[1659310579605,1.36812526,23360.0,23359.0,0.0479]
[1659310579819,1.05163006,23360.0,23359.0,0.0479]
[1659310580046,1.35562406,23360.0,23359.0,0.1179]
[1659310580955,1.31228262,23360.0,23359.0,0.1179]
[1659310581173,0.95915776,23360.0,23359.0,0.1179]
[1659310581401,0.86635776,23360.0,23359.0,0.0479]
[1659310581927,0.45690376,23360.0,23359.0,0.073]
[1659310583727,0.45690376,23360.0,23357.0,0.29483943]
[1659310583970,0.42870616,23359.0,23357.0,0.29483943]
[1659310584240,0.42870616,23359.0,23357.0,0.59483943]
[1659310584459,0.42800883,23359.0,23357.0,0.59483943]
[1659310584677,0.05,23358.0,23357.0,0.59483943]
[1659310584906,0.47870616,23358.0,23357.0,0.18787743]
[1659310585142,0.42870616,23358.0,23357.0,0.18787743]
[1659310586080,0.42870616,23358.0,23357.0,0.26787743]
[1659310587216,0.42870616,23358.0,23357.0,0.18787743]
[1659310589059,0.4720476,23358.0,23357.0,0.18787743]
[1659310589316,0.42870616,23358.0,23357.0,0.18787743]
[1659310589573,0.8,23357.0,23355.0,0.106963]
[1659310589817,0.8,23357.0,23350.0,0.21574749]
[1659310589818,0.05,23352.0,23350.0,0.21574749]
[1659310590041,0.05,23352.0,23347.0,0.06879343]
[1659310590042,0.7801864,23351.0,23347.0,0.06879343]
[1659310590285,0.05,23348.0,23347.0,0.01290987]
[1659310590508,0.47870616,23348.0,23347.0,0.01290987]
[1659310590725,0.47870616,23348.0,23346.0,0.04291]
[1659310590961,0.42870616,23347.0,23346.0,0.04291]
[1659310591207,0.43737444,23347.0,23346.0,0.04291]
[1659310591436,0.43737444,23347.0,23346.0,0.05555348]
[1659310591437,0.42870616,23347.0,23346.0,0.05555348]
[1659310591670,0.47870616,23347.0,23346.0,0.05555348]
[1659310591947,0.42870616,23347.0,23346.0,0.13555348]
[1659310592180,0.08211,23358.0,23346.0,0.18472795]
[1659310592181,0.05,23355.0,23346.0,0.18472795]
[1659310592409,0.47870616,23355.0,23346.0,0.95192795]
[1659310592633,0.42870616,23354.0,23346.0,0.95192795]
[1659310592854,0.05,23353.0,23346.0,0.95192795]
[1659310593088,0.82683756,23354.0,23346.0,0.95192795]
[1659310593089,0.42870616,23352.0,23346.0,0.95192795]
[1659310593355,0.42870616,23352.0,23346.0,0.66171195]
[1659310594047,0.42870616,23352.0,23346.0,0.70471195]
[1659310594289,0.42870616,23353.0,23347.0,0.76199147]
[1659310594521,0.05,23358.0,23349.0,0.04291]
[1659310594522,0.77875434,23357.0,23349.0,0.04291]
[1659310594761,0.42870616,23357.0,23352.0,0.04572016]
[1659310594994,0.42870616,23357.0,23353.0,0.106956]
[1659310595237,0.42870616,23357.0,23354.0,0.04322008]
[1659310595749,0.42870616,23357.0,23354.0,0.16282356]
[1659310596002,0.42870616,23357.0,23355.0,0.11954253]
[1659310596223,0.42870616,23357.0,23355.0,0.05689905]
[1659310596456,0.4720476,23357.0,23355.0,0.05689905]
[1659310596684,0.42870616,23356.0,23355.0,0.05689905]
[1659310597418,0.42870616,23357.0,23355.0,0.05689905]
[1659310597649,0.43737444,23357.0,23355.0,0.106957]
[1659310597878,0.42666016,23357.0,23356.0,0.04814136]
[1659310598307,0.47666016,23357.0,23356.0,0.04814136]
[1659310598542,0.47666016,23357.0,23356.0,0.09814136]
[1659310598762,0.47666016,23357.0,23356.0,0.04814136]
[1659310598763,0.5200016,23357.0,23356.0,0.04814136]
[1659310598963,0.47666016,23357.0,23356.0,0.04814136]
[1659310599175,0.05,23356.0,23355.0,0.13595303]
[1659310599414,0.47870616,23356.0,23355.0,0.40195303]
[1659310599639,0.35004818,23359.0,23355.0,0.40195303]
[1659310599640,0.05,23358.0,23355.0,0.40195303]
[1659310599879,0.47870616,23358.0,23355.0,0.40195303]
[1659310600118,0.35324818,23361.0,23356.0,0.40717656]
[1659310600119,0.0032,23361.0,23356.0,0.40717656]
[1659310600340,0.97983374,23362.0,23357.0,0.60923839]
[1659310600571,0.97983374,23362.0,23358.0,0.35884438]
[1659310600861,0.97983374,23362.0,23359.0,0.35939483]
[1659310601087,0.97983374,23362.0,23359.0,0.05939483]
[1659310601320,0.97983374,23362.0,23359.0,0.07203831]
[1659310601562,0.001,23363.0,23361.0,1.6016]
[1659310601787,0.0095,23367.0,23363.0,0.49677519]
[1659310602023,0.31498,23376.0,23365.0,0.04414313]
[1659310602271,0.42870616,23375.0,23366.0,0.39790068]
[1659310602512,0.00027245,23369.0,23367.0,0.3404822]
[1659310602743,0.41397861,23375.0,23368.0,0.04672678]
[1659310603215,0.05,23374.0,23368.0,0.04672678]
[1659310603447,0.42870616,23373.0,23368.0,0.04672678]
[1659310603906,0.42870616,23373.0,23368.0,0.07837026]
[1659310604126,0.42870616,23373.0,23351.0,8.38554304]
[1659310604127,0.303994,23372.0,23351.0,8.38554304]
[1659310604360,0.42870616,23371.0,23356.0,2.39611316]
[1659310604612,0.42870616,23371.0,23356.0,2.13921316]
[1659310604841,0.42870616,23371.0,23356.0,5.9740178]
[1659310605073,0.81901982,23371.0,23356.0,6.38666128]
[1659310605302,7.077e-05,23370.0,23356.0,6.78666128]
[1659310605778,7.077e-05,23370.0,23356.0,6.7740178]
[1659310606001,7.077e-05,23370.0,23356.0,6.4240178]
[1659310606246,0.82011554,23371.0,23356.0,6.9784178]
[1659310606694,0.92877693,23370.0,23356.0,6.9784178]
[1659310606924,0.92877693,23370.0,23356.0,6.5784178]
[1659310606925,1.32439539,23370.0,23356.0,6.5784178]
[1659310607211,1.32643257,23370.0,23356.0,6.9784178]
[1659310607439,1.32643257,23370.0,23356.0,7.0284178]
[1659310607662,1.3263618,23370.0,23356.0,7.7284178]
[1659310608149,0.42870616,23369.0,23356.0,7.7794178]
[1659310608365,0.82587948,23369.0,23356.0,7.7794178]
[1659310608592,0.42870616,23368.0,23356.0,7.3794178]
[1659310609062,0.3984467,23367.0,23356.0,6.7794178]
[1659310609298,0.3984467,23367.0,23356.0,6.7284178]
[1659310609543,0.3984467,23367.0,23356.0,2.51842327]
[1659310609767,0.8984467,23367.0,23356.0,2.41842327]
[1659310609996,0.8984467,23367.0,23356.0,2.49842327]
[1659310610673,0.42870616,23366.0,23356.0,2.49842327]
[1659310610944,0.40579218,23365.0,23356.0,2.49842327]
[1659310611117,0.45244334,23365.0,23356.0,2.49842327]
[1659310611339,0.45244334,23365.0,23356.0,2.41842327]
[1659310611799,0.47535732,23365.0,23356.0,2.83106675]
[1659310612036,0.42870616,23364.0,23356.0,2.90906675]
[1659310612305,0.42870616,23364.0,23356.0,2.35466675]
[1659310612538,0.42870616,23364.0,23356.0,1.92259859]
[1659310612758,0.42870616,23364.0,23356.0,1.90995511]
[1659310612963,0.4093181,23363.0,23356.0,1.90995511]
[1659310613180,0.4093181,23363.0,23356.0,1.83195511]
[1659310613702,0.4093181,23363.0,23356.0,2.28355511]
[1659310613703,0.42870616,23363.0,23356.0,2.28355511]
[1659310613930,0.42870616,23363.0,23356.0,2.36355511]
[1659310614154,0.42870616,23367.0,23356.0,2.36355511]
[1659310614388,0.42870616,23367.0,23356.0,2.3870825]
[1659310614389,0.90945294,23366.0,23356.0,2.3870825]
[1659310614616,0.42870616,23365.0,23356.0,2.3870825]
[1659310614835,0.45878442,23364.0,23356.0,2.3870825]
[1659310615064,0.42870616,23363.0,23356.0,2.3870825]
[1659310615329,0.42870616,23363.0,23356.0,2.3070825]
[1659310615565,0.42870616,23363.0,23356.0,2.67962079]
[1659310615783,0.4083306,23362.0,23356.0,2.67962079]
[1659310616027,0.4083306,23362.0,23356.0,2.75962079]
[1659310616271,0.40766134,23362.0,23356.0,2.75962079]
[1659310616495,0.40766522,23362.0,23356.0,2.75962079]
[1659310616717,0.42870616,23362.0,23356.0,2.39972598]
[1659310616942,0.42870616,23365.0,23356.0,6.60972051]
[1659310617164,0.42870616,23362.0,23356.0,6.70972051]
[1659310617389,0.42870616,23362.0,23356.0,2.31972598]
[1659310617645,0.41750114,23361.0,23356.0,2.31972598]
[1659310617870,0.42870616,23360.0,23356.0,2.30309859]
[1659310618092,0.42870616,23360.0,23356.0,2.28309859]
[1659310618322,0.42870616,23360.0,23356.0,2.38309859]
[1659310619250,0.42870616,23360.0,23356.0,2.45755148]
[1659310619484,0.42870616,23360.0,23356.0,2.38275348]
[1659310619934,0.42870616,23360.0,23356.0,2.37355348]
[1659310620403,0.40431632,23359.0,23356.0,1.82195348]
[1659310620644,0.42870616,23358.0,23356.0,1.70241]
[1659310620865,0.8320723,23358.0,23356.0,1.70241]
[1659310621085,0.42870616,23357.0,23356.0,1.70241]
[1659310622078,0.42870616,23357.0,23356.0,1.79505348]
[1659310622959,0.42870616,23358.0,23356.0,1.98505348]
[1659310622962,0.42870616,23359.0,23356.0,2.129325]
[1659310623417,0.42870616,23359.0,23356.0,2.14196848]
[1659310624021,0.42870616,23359.0,23356.0,2.209325]
[1659310624279,0.40174074,23358.0,23356.0,2.209325]
[1659310624513,0.42870616,23359.0,23356.0,2.209325]
[1659310625152,0.42870616,23359.0,23356.0,2.129325]
[1659310625839,0.42870616,23359.0,23356.0,6.45345573]
[1659310627191,0.42870616,23359.0,23356.0,6.37345573]
[1659310627649,0.39819388,23358.0,23356.0,6.37345573]
[1659310627870,0.39819388,23358.0,23356.0,6.45345573]
[1659310628304,0.42870616,23359.0,23356.0,6.45345573]
[1659310629153,0.92870616,23359.0,23356.0,6.37345573]
[1659310629382,0.3985669,23358.0,23356.0,6.37345573]
[1659310630017,0.3985669,23358.0,23356.0,6.45345573]
[1659310630231,0.92870616,23359.0,23356.0,6.45345573]
[1659310630873,0.92870616,23359.0,23356.0,6.63938928]
[1659310631317,0.92870616,23359.0,23356.0,6.55938928]
[1659310631538,0.92870616,23359.0,23356.0,6.39698312]
[1659310631998,0.92870616,23359.0,23356.0,6.47698312]
[1659310632441,0.92870616,23359.0,23356.0,2.23285239]
[1659310633332,0.5,23358.0,23356.0,2.15285239]
[1659310633982,0.5,23358.0,23356.0,2.23285239]
[1659310635226,0.5,23358.0,23356.0,2.15285239]
[1659310635907,0.5,23358.0,23356.0,2.23285239]
[1659310636322,0.42870616,23359.0,23356.0,2.23285239]
[1659310636966,0.5,23358.0,23356.0,2.23285239]
[1659310637215,0.5,23358.0,23356.0,2.03878594]
[1659310637446,0.5,23358.0,23356.0,0.20946094]
[1659310637447,0.42870616,23357.0,23356.0,0.20946094]
[1659310637891,0.42870616,23357.0,23356.0,0.10352739]
[1659310639181,0.47870616,23357.0,23356.0,0.02352739]
[1659310639416,0.5541576,23357.0,23356.0,2.739e-05]
[1659310639620,0.8581516,23357.0,23355.0,7.293e-05]
[1659310639852,0.8581516,23357.0,23350.0,0.654]
[1659310639853,1.28270016,23356.0,23350.0,0.654]
[1659310640081,0.92870616,23351.0,23350.0,0.654]
[1659310640297,0.92870616,23351.0,23350.0,0.69869267]
[1659310640506,0.92870616,23351.0,23350.0,0.71133615]
[1659310641180,0.90356148,23351.0,23350.0,0.76133615]
[1659310641401,0.90356148,23351.0,23350.0,0.81133615]
[1659310641637,0.83996148,23351.0,23350.0,0.79869267]
[1659310641840,0.83996148,23351.0,23350.0,0.87869267]
[1659310642294,0.5877,23358.0,23350.0,0.94572209]
[1659310642295,0.41125532,23353.0,23350.0,0.94572209]
[1659310642503,0.42870616,23352.0,23351.0,1.263871]
[1659310642750,0.42870616,23352.0,23351.0,1.363871]
[1659310643170,0.83996148,23353.0,23352.0,0.05]
[1659310643371,0.77762379,23353.0,23352.0,0.05]
[1659310643805,0.77762379,23353.0,23352.0,0.31593355]
[1659310644013,0.77762379,23353.0,23352.0,0.13]
[1659310644222,0.77762379,23353.0,23352.0,0.05]
[1659310644660,0.77762379,23353.0,23351.0,1.30762441]
[1659310644857,0.77762379,23353.0,23351.0,1.00762441]
[1659310645312,0.71397704,23353.0,23351.0,1.00762441]
[1659310645526,0.42870616,23353.0,23351.0,1.00762441]
[1659310645916,0.42870616,23353.0,23351.0,1.08762441]
[1659310646199,0.42870616,23353.0,23351.0,1.13762441]
[1659310646414,0.42870616,23353.0,23351.0,1.18762441]
[1659310646644,0.42870616,23353.0,23352.0,0.91264348]
[1659310647032,0.41620496,23353.0,23352.0,0.91264348]
[1659310647637,0.71397704,23354.0,23352.0,0.91264348]
[1659310647860,0.71397704,23354.0,23353.0,1.220809]
[1659310648091,0.71397704,23354.0,23353.0,1.28345248]
[1659310650103,0.71397704,23354.0,23353.0,1.36245248]
[1659310650563,0.71397704,23354.0,23353.0,1.41245248]
[1659310651452,0.71397704,23354.0,23353.0,0.51245248]
[1659310651686,0.71397704,23354.0,23353.0,0.5123716]
[1659310651913,0.71397704,23354.0,23353.0,0.4333716]
[1659310652137,0.71397704,23354.0,23353.0,0.51243843]
[1659310652630,0.71397704,23354.0,23353.0,0.46251931]
[1659310652845,0.71397704,23354.0,23353.0,0.24864631]
[1659310653075,0.71397704,23354.0,23353.0,0.26128979]
[1659310653317,0.71397704,23354.0,23353.0,0.31128979]
[1659310653995,0.71397704,23354.0,23353.0,0.39128979]
[1659310654221,0.71397704,23354.0,23353.0,0.29964631]
[1659310655446,0.28527088,23356.0,23355.0,0.213836]
[1659310655671,0.28527088,23356.0,23355.0,0.634582]
[1659310655672,0.68402193,23356.0,23355.0,0.634582]
[1659310656120,0.42870616,23356.0,23355.0,0.634582]
[1659310656359,0.42870616,23356.0,23355.0,0.206918]
[1659310656573,0.42870616,23356.0,23355.0,0.506818]
[1659310657015,0.68402193,23356.0,23355.0,0.506818]
[1659310657953,0.68402193,23356.0,23355.0,0.586818]
[1659310658182,0.68402193,23356.0,23355.0,1.014491]
[1659310659362,0.68402193,23356.0,23355.0,1.041411]
[1659310659583,0.68402193,23356.0,23355.0,0.506818]
[1659310660062,0.68402193,23356.0,23355.0,0.586818]
[1659310660534,0.68402193,23356.0,23355.0,1.121411]
[1659310661350,0.68402193,23356.0,23355.0,1.15420908]
[1659310661576,0.65239493,23356.0,23355.0,1.15420908]
[1659310661777,0.65239493,23356.0,23355.0,1.07420908]
[1659310661954,0.65239493,23356.0,23355.0,1.15420908]
[1659310663308,0.65239493,23356.0,23355.0,1.07420908]
[1659310663969,0.65239493,23356.0,23355.0,1.15420908]
[1659310665222,0.65239493,23356.0,23355.0,1.07420908]
[1659310665959,0.65239493,23356.0,23355.0,0.72653608]
[1659310666189,0.65239493,23356.0,23355.0,0.63917956]
[1659310667324,0.65239493,23356.0,23355.0,0.55917956]
[1659310667788,0.65239493,23356.0,23355.0,0.65917956]
[1659310668049,0.65239493,23356.0,23355.0,0.73917956]
[1659310669426,0.65239493,23356.0,23355.0,0.65917956]
[1659310669893,0.65239493,23356.0,23355.0,0.67382137]
[1659310670105,0.65239493,23356.0,23355.0,0.75382137]
[1659310670635,0.65239493,23356.0,23355.0,0.70382137]
[1659310671070,0.65239493,23356.0,23355.0,0.75382137]
[1659310671279,0.65239493,23356.0,23355.0,0.67382137]
[1659310671929,0.65239493,23356.0,23355.0,0.74182137]
[1659310672180,0.65239493,23356.0,23355.0,0.72917789]
[1659310673236,0.65239493,23356.0,23355.0,0.60117789]
[1659310673597,0.65239493,23356.0,23355.0,0.65117789]
[1659310673831,0.65239493,23356.0,23355.0,0.73117789]
[1659310674594,0.65239493,23356.0,23355.0,0.53425789]
[1659310674595,1.12194995,23356.0,23355.0,0.53425789]
[1659310674768,1.42594395,23356.0,23355.0,0.14303989]
[1659310674968,1.42594395,23356.0,23355.0,0.03673989]
[1659310675173,1.12194995,23356.0,23355.0,0.03673989]
[1659310675370,0.05,23354.0,23353.0,0.01271031]
[1659310675608,1.14116387,23354.0,23350.0,3.23921256]
[1659310675728,0.42870616,23352.0,23350.0,3.23921256]
[1659310675925,0.37246878,23351.0,23350.0,3.28390329]
[1659310676139,1.05649071,23351.0,23350.0,3.51723886]
[1659310676346,0.68402193,23351.0,23350.0,3.51723886]
[1659310676759,1.05649071,23351.0,23350.0,3.51723886]
[1659310676998,1.05649071,23351.0,23350.0,3.56723886]
[1659310678324,1.05649071,23351.0,23350.0,3.61717498]
[1659310678537,1.05649071,23351.0,23350.0,3.6125892]
[1659310678968,0.68402193,23351.0,23350.0,3.6125892]
[1659310679181,1.05649071,23351.0,23350.0,3.6125892]
[1659310679833,0.68402193,23351.0,23350.0,3.6125892]
[1659310680044,0.68402193,23351.0,23350.0,3.78658167]
[1659310680465,0.59596919,23353.0,23350.0,3.5532461]
[1659310680680,0.42870616,23353.0,23351.0,0.370784]
[1659310680912,0.24531577,23355.0,23351.0,1.576183]
[1659310681101,0.24531577,23355.0,23352.0,0.00824357]
[1659310681102,0.42870616,23354.0,23352.0,0.00824357]
[1659310681574,0.67402193,23354.0,23352.0,0.32904557]
[1659310681797,0.67402193,23354.0,23352.0,0.40804557]
[1659310682064,0.67402193,23354.0,23353.0,0.01264348]
[1659310682288,0.67402193,23354.0,23353.0,0.56264348]
[1659310682729,0.67402193,23354.0,23353.0,0.61264348]
[1659310683186,0.67402193,23354.0,23353.0,0.71957648]
[1659310683593,0.64171593,23354.0,23353.0,0.71957648]